{"text_format":"1","workbook":"xlsx","n_sheets":10,"sheets":["Training","IL","MN","WISCONSIN","STATE3","STATE4","STATE5","STATE6","STATE7","STATE8"],"not_rendered":{"charts":0,"images":0,"macros":1,"external_links":0,"defined_names":30,"comments":0,"pivot_tables":9},"unopened":[],"bounds":{"document_bytes":16777216,"sheet_cells":100000,"rows_first":2000,"rows_last":500,"rows_between":2000,"halvings":0,"cell_chars":16384,"cell_head_chars":4096},"cells_cut":0,"cells_raw":0,"read":"whole","date_system":"1900"}

{"sheet":"Training","index":0,"n_rows":1054,"n_cols":20,"rows_kept":1054,"cut":false,"hidden":false,"merged":[]}
[null,"Training / Continuing Education Roster"]
["Course ID","Course Title","Sponsor","Location","Instructor","Date Passed","PDH/CEU","ILLINOIS","MINNESOTA","STATE3","STATE4","STATE5","STATE6","STATE7","STATE8","WISCONSIN 13.03(1)(b)","WISCONSIN 13.03(1)(c)","WISCONSIN 13.03(2)(f)","WISCONSIN OTHER","Notes"]
["A100","Course 1","WisDOT","Madison","Jones","2020-03-01",4,"Y","Y","Y","Y","Y","Y","Y","Y",4,6,8.5,2.5,"Testing Notes"]
["B100","Course 2","WisDOT","Madison","Smith","2021-03-21",null,"Y","Y",null,null,null,"Y",null,null,2,2,2,2]
["C300","Course 3","GB Public Works","Green Bay","Kane","2021-02-01",4,"Y","Y","Y","Y","Y","Y","Y","Y",2,2,2,2,"CHECK NOTES"]
[]
[]
[]
[]
[]
[]
[]
[]
[]
[]
[]
[]
[]
[]
[]
[]
[]
[]
[]
[]
[]
[]
[]
[]
[]
[]
[]
[]
[]
[]
[]
[]
[]
[]
[]
[]
[]
[]
[]
[]
[]
[]
[]
[]
[]
[]
[]
[]
[]
[]
[]
[]
[]
[]
[]
[]
[]
[]
[]
[]
[]
[]
[]
[]
[]
[]
[]
[]
[]
[]
[]
[]
[]
[]
[]
[]
[]
[]
[]
[]
[]
[]
[]
[]
[]
[]
[]
[]
[]
[]
[]
[]
[]
[]
[]
[]
[]
[]
[]
[]
[]
[]
[]
[]
[]
[]
[]
[]
[]
[]
[]
[]
[]
[]
[]
[]
[]
[]
[]
[]
[]
[]
[]
[]
[]
[]
[]
[]
[]
[]
[]
[]
[]
[]
[]
[]
[]
[]
[]
[]
[]
[]
[]
[]
[]
[]
[]
[]
[]
[]
[]
[]
[]
[]
[]
[]
[]
[]
[]
[]
[]
[]
[]
[]
[]
[]
[]
[]
[]
[]
[]
[]
[]
[]
[]
[]
[]
[]
[]
[]
[]
[]
[]
[]
[]
[]
[]
[]
[]
[]
[]
[]
[]
[]
[]
[]
[]
[]
[]
[]
[]
[]
[]
[]
[]
[]
[]
[]
[]
[]
[]
[]
[]
[]
[]
[]
[]
[]
[]
[]
[]
[]
[]
[]
[]
[]
[]
[]
[]
[]
[]
[]
[]
[]
[]
[]
[]
[]
[]
[]
[]
[]
[]
[]
[]
[]
[]
[]
[]
[]
[]
[]
[]
[]
[]
[]
[]
[]
[]
[]
[]
[]
[]
[]
[]
[]
[]
[]
[]
[]
[]
[]
[]
[]
[]
[null,null,{"$f":"VLOOKUP(IF(ISERROR(VALUE(A281)),A281,VALUE(A281)),PayItems,2,FALSE)","v":{"$error":"#REF!"}}]
[null,null,{"$error":"#REF!"}]
[null,null,{"$error":"#REF!"}]
[null,null,{"$error":"#REF!"}]
[null,null,{"$error":"#REF!"}]
[null,null,{"$error":"#REF!"}]
[null,null,{"$error":"#REF!"}]
[null,null,{"$error":"#REF!"}]
[null,null,{"$error":"#REF!"}]
[null,null,{"$error":"#REF!"}]
[null,null,{"$error":"#REF!"}]
[null,null,{"$error":"#REF!"}]
[null,null,{"$error":"#REF!"}]
[null,null,{"$error":"#REF!"}]
[null,null,{"$error":"#REF!"}]
[null,null,{"$error":"#REF!"}]
[null,null,{"$error":"#REF!"}]
[null,null,{"$error":"#REF!"}]
[null,null,{"$error":"#REF!"}]
[null,null,{"$f":"VLOOKUP(IF(ISERROR(VALUE(A300)),A300,VALUE(A300)),PayItems,2,FALSE)","v":{"$error":"#REF!"}}]
[null,null,{"$error":"#REF!"}]
[null,null,{"$error":"#REF!"}]
[null,null,{"$error":"#REF!"}]
[null,null,{"$error":"#REF!"}]
[null,null,{"$error":"#REF!"}]
[null,null,{"$error":"#REF!"}]
[null,null,{"$error":"#REF!"}]
[null,null,{"$error":"#REF!"}]
[null,null,{"$error":"#REF!"}]
[null,null,{"$error":"#REF!"}]
[null,null,{"$error":"#REF!"}]
[null,null,{"$error":"#REF!"}]
[null,null,{"$error":"#REF!"}]
[null,null,{"$error":"#REF!"}]
[null,null,{"$error":"#REF!"}]
[null,null,{"$error":"#REF!"}]
[null,null,{"$error":"#REF!"}]
[null,null,{"$error":"#REF!"}]
[null,null,{"$error":"#REF!"}]
[null,null,{"$error":"#REF!"}]
[null,null,{"$error":"#REF!"}]
[null,null,{"$error":"#REF!"}]
[null,null,{"$f":"VLOOKUP(IF(ISERROR(VALUE(A323)),A323,VALUE(A323)),PayItems,2,FALSE)","v":{"$error":"#REF!"}}]
[null,null,{"$error":"#REF!"}]
[null,null,{"$error":"#REF!"}]
[null,null,{"$error":"#REF!"}]
[null,null,{"$error":"#REF!"}]
[null,null,{"$error":"#REF!"}]
[null,null,{"$error":"#REF!"}]
[null,null,{"$error":"#REF!"}]
[null,null,{"$error":"#REF!"}]
[null,null,{"$error":"#REF!"}]
[null,null,{"$error":"#REF!"}]
[null,null,{"$error":"#REF!"}]
[null,null,{"$error":"#REF!"}]
[null,null,{"$error":"#REF!"}]
[null,null,{"$error":"#REF!"}]
[null,null,{"$error":"#REF!"}]
[null,null,{"$error":"#REF!"}]
[null,null,{"$error":"#REF!"}]
[null,null,{"$error":"#REF!"}]
[null,null,{"$error":"#REF!"}]
[null,null,{"$error":"#REF!"}]
[null,null,{"$error":"#REF!"}]
[null,null,{"$error":"#REF!"}]
[null,null,{"$error":"#REF!"}]
[null,null,{"$error":"#REF!"}]
[null,null,{"$error":"#REF!"}]
[null,null,{"$error":"#REF!"}]
[null,null,{"$error":"#REF!"}]
[null,null,{"$error":"#REF!"}]
[null,null,{"$error":"#REF!"}]
[null,null,{"$error":"#REF!"}]
[null,null,{"$error":"#REF!"}]
[null,null,{"$error":"#REF!"}]
[null,null,{"$error":"#REF!"}]
[null,null,{"$error":"#REF!"}]
[null,null,{"$error":"#REF!"}]
[null,null,{"$error":"#REF!"}]
[null,null,{"$error":"#REF!"}]
[null,null,{"$error":"#REF!"}]
[null,null,{"$error":"#REF!"}]
[null,null,{"$error":"#REF!"}]
[null,null,{"$error":"#REF!"}]
[null,null,{"$error":"#REF!"}]
[null,null,{"$error":"#REF!"}]
[null,null,{"$error":"#REF!"}]
[null,null,{"$error":"#REF!"}]
[null,null,{"$error":"#REF!"}]
[null,null,{"$error":"#REF!"}]
[null,null,{"$error":"#REF!"}]
[null,null,{"$error":"#REF!"}]
[null,null,{"$error":"#REF!"}]
[null,null,{"$error":"#REF!"}]
[null,null,{"$error":"#REF!"}]
[null,null,{"$error":"#REF!"}]
[null,null,{"$error":"#REF!"}]
[null,null,{"$error":"#REF!"}]
[null,null,{"$error":"#REF!"}]
[null,null,{"$error":"#REF!"}]
[null,null,{"$error":"#REF!"}]
[null,null,{"$error":"#REF!"}]
[null,null,{"$error":"#REF!"}]
[null,null,{"$error":"#REF!"}]
[null,null,{"$error":"#REF!"}]
[null,null,{"$error":"#REF!"}]
[null,null,{"$f":"VLOOKUP(IF(ISERROR(VALUE(A387)),A387,VALUE(A387)),PayItems,2,FALSE)","v":{"$error":"#REF!"}}]
[null,null,{"$error":"#REF!"}]
[null,null,{"$error":"#REF!"}]
[null,null,{"$error":"#REF!"}]
[null,null,{"$error":"#REF!"}]
[null,null,{"$error":"#REF!"}]
[null,null,{"$error":"#REF!"}]
[null,null,{"$error":"#REF!"}]
[null,null,{"$error":"#REF!"}]
[null,null,{"$error":"#REF!"}]
[null,null,{"$error":"#REF!"}]
[null,null,{"$error":"#REF!"}]
[null,null,{"$error":"#REF!"}]
[null,null,{"$error":"#REF!"}]
[null,null,{"$error":"#REF!"}]
[null,null,{"$error":"#REF!"}]
[null,null,{"$error":"#REF!"}]
[null,null,{"$error":"#REF!"}]
[null,null,{"$error":"#REF!"}]
[null,null,{"$error":"#REF!"}]
[null,null,{"$error":"#REF!"}]
[null,null,{"$error":"#REF!"}]
[null,null,{"$error":"#REF!"}]
[null,null,{"$error":"#REF!"}]
[null,null,{"$error":"#REF!"}]
[null,null,{"$error":"#REF!"}]
[null,null,{"$error":"#REF!"}]
[null,null,{"$error":"#REF!"}]
[null,null,{"$error":"#REF!"}]
[null,null,{"$error":"#REF!"}]
[null,null,{"$error":"#REF!"}]
[null,null,{"$error":"#REF!"}]
[null,null,{"$error":"#REF!"}]
[null,null,{"$error":"#REF!"}]
[null,null,{"$error":"#REF!"}]
[null,null,{"$error":"#REF!"}]
[null,null,{"$error":"#REF!"}]
[null,null,{"$error":"#REF!"}]
[null,null,{"$error":"#REF!"}]
[null,null,{"$error":"#REF!"}]
[null,null,{"$error":"#REF!"}]
[null,null,{"$error":"#REF!"}]
[null,null,{"$error":"#REF!"}]
[null,null,{"$error":"#REF!"}]
[null,null,{"$error":"#REF!"}]
[null,null,{"$error":"#REF!"}]
[null,null,{"$error":"#REF!"}]
[null,null,{"$error":"#REF!"}]
[null,null,{"$error":"#REF!"}]
[null,null,{"$error":"#REF!"}]
[null,null,{"$error":"#REF!"}]
[null,null,{"$error":"#REF!"}]
[null,null,{"$error":"#REF!"}]
[null,null,{"$error":"#REF!"}]
[null,null,{"$error":"#REF!"}]
[null,null,{"$error":"#REF!"}]
[null,null,{"$error":"#REF!"}]
[null,null,{"$error":"#REF!"}]
[null,null,{"$error":"#REF!"}]
[null,null,{"$error":"#REF!"}]
[null,null,{"$error":"#REF!"}]
[null,null,{"$error":"#REF!"}]
[null,null,{"$error":"#REF!"}]
[null,null,{"$error":"#REF!"}]
[null,null,{"$f":"VLOOKUP(IF(ISERROR(VALUE(A451)),A451,VALUE(A451)),PayItems,2,FALSE)","v":{"$error":"#REF!"}}]
[null,null,{"$error":"#REF!"}]
[null,null,{"$error":"#REF!"}]
[null,null,{"$error":"#REF!"}]
[null,null,{"$error":"#REF!"}]
[null,null,{"$error":"#REF!"}]
[null,null,{"$error":"#REF!"}]
[null,null,{"$error":"#REF!"}]
[null,null,{"$error":"#REF!"}]
[null,null,{"$error":"#REF!"}]
[null,null,{"$error":"#REF!"}]
[null,null,{"$error":"#REF!"}]
[null,null,{"$error":"#REF!"}]
[null,null,{"$error":"#REF!"}]
[null,null,{"$error":"#REF!"}]
[null,null,{"$error":"#REF!"}]
[null,null,{"$error":"#REF!"}]
[null,null,{"$error":"#REF!"}]
[null,null,{"$error":"#REF!"}]
[null,null,{"$error":"#REF!"}]
[null,null,{"$error":"#REF!"}]
[null,null,{"$error":"#REF!"}]
[null,null,{"$error":"#REF!"}]
[null,null,{"$error":"#REF!"}]
[null,null,{"$error":"#REF!"}]
[null,null,{"$error":"#REF!"}]
[null,null,{"$error":"#REF!"}]
[null,null,{"$error":"#REF!"}]
[null,null,{"$error":"#REF!"}]
[null,null,{"$error":"#REF!"}]
[null,null,{"$error":"#REF!"}]
[null,null,{"$error":"#REF!"}]
[null,null,{"$error":"#REF!"}]
[null,null,{"$error":"#REF!"}]
[null,null,{"$error":"#REF!"}]
[null,null,{"$error":"#REF!"}]
[null,null,{"$error":"#REF!"}]
[null,null,{"$error":"#REF!"}]
[null,null,{"$error":"#REF!"}]
[null,null,{"$error":"#REF!"}]
[null,null,{"$error":"#REF!"}]
[null,null,{"$error":"#REF!"}]
[null,null,{"$error":"#REF!"}]
[null,null,{"$error":"#REF!"}]
[null,null,{"$error":"#REF!"}]
[null,null,{"$error":"#REF!"}]
[null,null,{"$error":"#REF!"}]
[null,null,{"$error":"#REF!"}]
[null,null,{"$error":"#REF!"}]
[null,null,{"$error":"#REF!"}]
[null,null,{"$error":"#REF!"}]
[null,null,{"$error":"#REF!"}]
[null,null,{"$error":"#REF!"}]
[null,null,{"$error":"#REF!"}]
[null,null,{"$error":"#REF!"}]
[null,null,{"$error":"#REF!"}]
[null,null,{"$error":"#REF!"}]
[null,null,{"$error":"#REF!"}]
[null,null,{"$error":"#REF!"}]
[null,null,{"$error":"#REF!"}]
[null,null,{"$error":"#REF!"}]
[null,null,{"$error":"#REF!"}]
[null,null,{"$error":"#REF!"}]
[null,null,{"$error":"#REF!"}]
[null,null,{"$f":"VLOOKUP(IF(ISERROR(VALUE(A515)),A515,VALUE(A515)),PayItems,2,FALSE)","v":{"$error":"#REF!"}}]
[null,null,{"$error":"#REF!"}]
[null,null,{"$error":"#REF!"}]
[null,null,{"$error":"#REF!"}]
[null,null,{"$error":"#REF!"}]
[null,null,{"$error":"#REF!"}]
[null,null,{"$error":"#REF!"}]
[null,null,{"$error":"#REF!"}]
[null,null,{"$error":"#REF!"}]
[null,null,{"$error":"#REF!"}]
[null,null,{"$error":"#REF!"}]
[null,null,{"$error":"#REF!"}]
[null,null,{"$error":"#REF!"}]
[null,null,{"$error":"#REF!"}]
[null,null,{"$error":"#REF!"}]
[null,null,{"$error":"#REF!"}]
[null,null,{"$error":"#REF!"}]
[null,null,{"$error":"#REF!"}]
[null,null,{"$error":"#REF!"}]
[null,null,{"$error":"#REF!"}]
[null,null,{"$error":"#REF!"}]
[null,null,{"$error":"#REF!"}]
[null,null,{"$error":"#REF!"}]
[null,null,{"$error":"#REF!"}]
[null,null,{"$error":"#REF!"}]
[null,null,{"$error":"#REF!"}]
[null,null,{"$error":"#REF!"}]
[null,null,{"$error":"#REF!"}]
[null,null,{"$error":"#REF!"}]
[null,null,{"$error":"#REF!"}]
[null,null,{"$error":"#REF!"}]
[null,null,{"$error":"#REF!"}]
[null,null,{"$error":"#REF!"}]
[null,null,{"$error":"#REF!"}]
[null,null,{"$error":"#REF!"}]
[null,null,{"$error":"#REF!"}]
[null,null,{"$error":"#REF!"}]
[null,null,{"$error":"#REF!"}]
[null,null,{"$error":"#REF!"}]
[null,null,{"$error":"#REF!"}]
[null,null,{"$error":"#REF!"}]
[null,null,{"$error":"#REF!"}]
[null,null,{"$error":"#REF!"}]
[null,null,{"$error":"#REF!"}]
[null,null,{"$error":"#REF!"}]
[null,null,{"$error":"#REF!"}]
[null,null,{"$error":"#REF!"}]
[null,null,{"$error":"#REF!"}]
[null,null,{"$error":"#REF!"}]
[null,null,{"$error":"#REF!"}]
[null,null,{"$error":"#REF!"}]
[null,null,{"$error":"#REF!"}]
[null,null,{"$error":"#REF!"}]
[null,null,{"$error":"#REF!"}]
[null,null,{"$error":"#REF!"}]
[null,null,{"$error":"#REF!"}]
[null,null,{"$error":"#REF!"}]
[null,null,{"$error":"#REF!"}]
[null,null,{"$error":"#REF!"}]
[null,null,{"$error":"#REF!"}]
[null,null,{"$error":"#REF!"}]
[null,null,{"$error":"#REF!"}]
[null,null,{"$error":"#REF!"}]
[null,null,{"$error":"#REF!"}]
[null,null,{"$f":"VLOOKUP(IF(ISERROR(VALUE(A579)),A579,VALUE(A579)),PayItems,2,FALSE)","v":{"$error":"#REF!"}}]
[null,null,{"$error":"#REF!"}]
[null,null,{"$error":"#REF!"}]
[null,null,{"$error":"#REF!"}]
[null,null,{"$error":"#REF!"}]
[null,null,{"$error":"#REF!"}]
[null,null,{"$error":"#REF!"}]
[null,null,{"$error":"#REF!"}]
[null,null,{"$error":"#REF!"}]
[null,null,{"$error":"#REF!"}]
[null,null,{"$error":"#REF!"}]
[null,null,{"$error":"#REF!"}]
[null,null,{"$error":"#REF!"}]
[null,null,{"$error":"#REF!"}]
[null,null,{"$error":"#REF!"}]
[null,null,{"$error":"#REF!"}]
[null,null,{"$error":"#REF!"}]
[null,null,{"$error":"#REF!"}]
[null,null,{"$error":"#REF!"}]
[null,null,{"$error":"#REF!"}]
[null,null,{"$error":"#REF!"}]
[null,null,{"$error":"#REF!"}]
[null,null,{"$error":"#REF!"}]
[null,null,{"$error":"#REF!"}]
[null,null,{"$error":"#REF!"}]
[null,null,{"$error":"#REF!"}]
[null,null,{"$error":"#REF!"}]
[null,null,{"$error":"#REF!"}]
[null,null,{"$error":"#REF!"}]
[null,null,{"$error":"#REF!"}]
[null,null,{"$error":"#REF!"}]
[null,null,{"$error":"#REF!"}]
[null,null,{"$error":"#REF!"}]
[null,null,{"$error":"#REF!"}]
[null,null,{"$error":"#REF!"}]
[null,null,{"$error":"#REF!"}]
[null,null,{"$error":"#REF!"}]
[null,null,{"$error":"#REF!"}]
[null,null,{"$error":"#REF!"}]
[null,null,{"$error":"#REF!"}]
[null,null,{"$error":"#REF!"}]
[null,null,{"$error":"#REF!"}]
[null,null,{"$error":"#REF!"}]
[null,null,{"$error":"#REF!"}]
[null,null,{"$error":"#REF!"}]
[null,null,{"$error":"#REF!"}]
[null,null,{"$error":"#REF!"}]
[null,null,{"$error":"#REF!"}]
[null,null,{"$error":"#REF!"}]
[null,null,{"$error":"#REF!"}]
[null,null,{"$error":"#REF!"}]
[null,null,{"$error":"#REF!"}]
[null,null,{"$error":"#REF!"}]
[null,null,{"$error":"#REF!"}]
[null,null,{"$error":"#REF!"}]
[null,null,{"$error":"#REF!"}]
[null,null,{"$error":"#REF!"}]
[null,null,{"$error":"#REF!"}]
[null,null,{"$error":"#REF!"}]
[null,null,{"$error":"#REF!"}]
[null,null,{"$error":"#REF!"}]
[null,null,{"$error":"#REF!"}]
[null,null,{"$error":"#REF!"}]
[null,null,{"$error":"#REF!"}]
[null,null,{"$f":"VLOOKUP(IF(ISERROR(VALUE(A643)),A643,VALUE(A643)),PayItems,2,FALSE)","v":{"$error":"#REF!"}}]
[null,null,{"$error":"#REF!"}]
[null,null,{"$error":"#REF!"}]
[null,null,{"$error":"#REF!"}]
[null,null,{"$error":"#REF!"}]
[null,null,{"$error":"#REF!"}]
[null,null,{"$error":"#REF!"}]
[null,null,{"$error":"#REF!"}]
[null,null,{"$error":"#REF!"}]
[null,null,{"$error":"#REF!"}]
[null,null,{"$error":"#REF!"}]
[null,null,{"$error":"#REF!"}]
[null,null,{"$error":"#REF!"}]
[null,null,{"$error":"#REF!"}]
[null,null,{"$error":"#REF!"}]
[null,null,{"$error":"#REF!"}]
[null,null,{"$error":"#REF!"}]
[null,null,{"$error":"#REF!"}]
[null,null,{"$error":"#REF!"}]
[null,null,{"$error":"#REF!"}]
[null,null,{"$error":"#REF!"}]
[null,null,{"$error":"#REF!"}]
[null,null,{"$error":"#REF!"}]
[null,null,{"$error":"#REF!"}]
[null,null,{"$error":"#REF!"}]
[null,null,{"$error":"#REF!"}]
[null,null,{"$error":"#REF!"}]
[null,null,{"$error":"#REF!"}]
[null,null,{"$error":"#REF!"}]
[null,null,{"$error":"#REF!"}]
[null,null,{"$error":"#REF!"}]
[null,null,{"$error":"#REF!"}]
[null,null,{"$error":"#REF!"}]
[null,null,{"$error":"#REF!"}]
[null,null,{"$error":"#REF!"}]
[null,null,{"$error":"#REF!"}]
[null,null,{"$error":"#REF!"}]
[null,null,{"$error":"#REF!"}]
[null,null,{"$error":"#REF!"}]
[null,null,{"$error":"#REF!"}]
[null,null,{"$error":"#REF!"}]
[null,null,{"$error":"#REF!"}]
[null,null,{"$error":"#REF!"}]
[null,null,{"$error":"#REF!"}]
[null,null,{"$error":"#REF!"}]
[null,null,{"$error":"#REF!"}]
[null,null,{"$error":"#REF!"}]
[null,null,{"$error":"#REF!"}]
[null,null,{"$error":"#REF!"}]
[null,null,{"$error":"#REF!"}]
[null,null,{"$error":"#REF!"}]
[null,null,{"$error":"#REF!"}]
[null,null,{"$error":"#REF!"}]
[null,null,{"$error":"#REF!"}]
[null,null,{"$error":"#REF!"}]
[null,null,{"$error":"#REF!"}]
[null,null,{"$error":"#REF!"}]
[null,null,{"$error":"#REF!"}]
[null,null,{"$error":"#REF!"}]
[null,null,{"$error":"#REF!"}]
[null,null,{"$error":"#REF!"}]
[null,null,{"$error":"#REF!"}]
[null,null,{"$error":"#REF!"}]
[null,null,{"$error":"#REF!"}]
[null,null,{"$f":"VLOOKUP(IF(ISERROR(VALUE(A707)),A707,VALUE(A707)),PayItems,2,FALSE)","v":{"$error":"#REF!"}}]
[null,null,{"$error":"#REF!"}]
[null,null,{"$error":"#REF!"}]
[null,null,{"$error":"#REF!"}]
[null,null,{"$error":"#REF!"}]
[null,null,{"$error":"#REF!"}]
[null,null,{"$error":"#REF!"}]
[null,null,{"$error":"#REF!"}]
[null,null,{"$error":"#REF!"}]
[null,null,{"$error":"#REF!"}]
[null,null,{"$error":"#REF!"}]
[null,null,{"$error":"#REF!"}]
[null,null,{"$error":"#REF!"}]
[null,null,{"$error":"#REF!"}]
[null,null,{"$error":"#REF!"}]
[null,null,{"$error":"#REF!"}]
[null,null,{"$error":"#REF!"}]
[null,null,{"$error":"#REF!"}]
[null,null,{"$error":"#REF!"}]
[null,null,{"$error":"#REF!"}]
[null,null,{"$error":"#REF!"}]
[null,null,{"$error":"#REF!"}]
[null,null,{"$error":"#REF!"}]
[null,null,{"$error":"#REF!"}]
[null,null,{"$error":"#REF!"}]
[null,null,{"$error":"#REF!"}]
[null,null,{"$error":"#REF!"}]
[null,null,{"$error":"#REF!"}]
[null,null,{"$error":"#REF!"}]
[null,null,{"$error":"#REF!"}]
[null,null,{"$error":"#REF!"}]
[null,null,{"$error":"#REF!"}]
[null,null,{"$error":"#REF!"}]
[null,null,{"$error":"#REF!"}]
[null,null,{"$error":"#REF!"}]
[null,null,{"$error":"#REF!"}]
[null,null,{"$error":"#REF!"}]
[null,null,{"$error":"#REF!"}]
[null,null,{"$error":"#REF!"}]
[null,null,{"$error":"#REF!"}]
[null,null,{"$error":"#REF!"}]
[null,null,{"$error":"#REF!"}]
[null,null,{"$error":"#REF!"}]
[null,null,{"$error":"#REF!"}]
[null,null,{"$error":"#REF!"}]
[null,null,{"$error":"#REF!"}]
[null,null,{"$error":"#REF!"}]
[null,null,{"$error":"#REF!"}]
[null,null,{"$error":"#REF!"}]
[null,null,{"$error":"#REF!"}]
[null,null,{"$error":"#REF!"}]
[null,null,{"$error":"#REF!"}]
[null,null,{"$error":"#REF!"}]
[null,null,{"$error":"#REF!"}]
[null,null,{"$error":"#REF!"}]
[null,null,{"$error":"#REF!"}]
[null,null,{"$error":"#REF!"}]
[null,null,{"$error":"#REF!"}]
[null,null,{"$error":"#REF!"}]
[null,null,{"$error":"#REF!"}]
[null,null,{"$error":"#REF!"}]
[null,null,{"$error":"#REF!"}]
[null,null,{"$error":"#REF!"}]
[null,null,{"$error":"#REF!"}]
[null,null,{"$f":"VLOOKUP(IF(ISERROR(VALUE(A771)),A771,VALUE(A771)),PayItems,2,FALSE)","v":{"$error":"#REF!"}}]
[null,null,{"$error":"#REF!"}]
[null,null,{"$error":"#REF!"}]
[null,null,{"$error":"#REF!"}]
[null,null,{"$error":"#REF!"}]
[null,null,{"$error":"#REF!"}]
[null,null,{"$error":"#REF!"}]
[null,null,{"$error":"#REF!"}]
[null,null,{"$error":"#REF!"}]
[null,null,{"$error":"#REF!"}]
[null,null,{"$error":"#REF!"}]
[null,null,{"$error":"#REF!"}]
[null,null,{"$error":"#REF!"}]
[null,null,{"$error":"#REF!"}]
[null,null,{"$error":"#REF!"}]
[null,null,{"$error":"#REF!"}]
[null,null,{"$error":"#REF!"}]
[null,null,{"$error":"#REF!"}]
[null,null,{"$error":"#REF!"}]
[null,null,{"$error":"#REF!"}]
[null,null,{"$error":"#REF!"}]
[null,null,{"$error":"#REF!"}]
[null,null,{"$error":"#REF!"}]
[null,null,{"$error":"#REF!"}]
[null,null,{"$error":"#REF!"}]
[null,null,{"$error":"#REF!"}]
[null,null,{"$error":"#REF!"}]
[null,null,{"$error":"#REF!"}]
[null,null,{"$error":"#REF!"}]
[null,null,{"$error":"#REF!"}]
[null,null,{"$error":"#REF!"}]
[null,null,{"$error":"#REF!"}]
[null,null,{"$error":"#REF!"}]
[null,null,{"$error":"#REF!"}]
[null,null,{"$error":"#REF!"}]
[null,null,{"$error":"#REF!"}]
[null,null,{"$error":"#REF!"}]
[null,null,{"$error":"#REF!"}]
[null,null,{"$error":"#REF!"}]
[null,null,{"$error":"#REF!"}]
[null,null,{"$error":"#REF!"}]
[null,null,{"$error":"#REF!"}]
[null,null,{"$error":"#REF!"}]
[null,null,{"$error":"#REF!"}]
[null,null,{"$error":"#REF!"}]
[null,null,{"$error":"#REF!"}]
[null,null,{"$error":"#REF!"}]
[null,null,{"$error":"#REF!"}]
[null,null,{"$error":"#REF!"}]
[null,null,{"$error":"#REF!"}]
[null,null,{"$error":"#REF!"}]
[null,null,{"$error":"#REF!"}]
[null,null,{"$error":"#REF!"}]
[null,null,{"$error":"#REF!"}]
[null,null,{"$error":"#REF!"}]
[null,null,{"$error":"#REF!"}]
[null,null,{"$error":"#REF!"}]
[null,null,{"$error":"#REF!"}]
[null,null,{"$error":"#REF!"}]
[null,null,{"$error":"#REF!"}]
[null,null,{"$error":"#REF!"}]
[null,null,{"$error":"#REF!"}]
[null,null,{"$error":"#REF!"}]
[null,null,{"$error":"#REF!"}]
["xx",null,{"$f":"VLOOKUP(IF(ISERROR(VALUE(A835)),A835,VALUE(A835)),PayItems,2,FALSE)","v":{"$error":"#REF!"}}]
[null,null,{"$error":"#REF!"}]
[null,null,{"$error":"#REF!"}]
[null,null,{"$error":"#REF!"}]
[null,null,{"$error":"#REF!"}]
[null,null,{"$error":"#REF!"}]
[null,null,{"$error":"#REF!"}]
[null,null,{"$error":"#REF!"}]
[null,null,{"$error":"#REF!"}]
[null,null,{"$error":"#REF!"}]
[null,null,{"$error":"#REF!"}]
[null,null,{"$error":"#REF!"}]
[null,null,{"$error":"#REF!"}]
[null,null,{"$error":"#REF!"}]
[null,null,{"$error":"#REF!"}]
[null,null,{"$error":"#REF!"}]
[null,null,{"$error":"#REF!"}]
[null,null,{"$error":"#REF!"}]
[null,null,{"$error":"#REF!"}]
[null,null,{"$error":"#REF!"}]
[null,null,{"$error":"#REF!"}]
[null,null,{"$error":"#REF!"}]
[null,null,{"$error":"#REF!"}]
[null,null,{"$error":"#REF!"}]
[null,null,{"$error":"#REF!"}]
[null,null,{"$error":"#REF!"}]
[null,null,{"$error":"#REF!"}]
[null,null,{"$error":"#REF!"}]
[null,null,{"$error":"#REF!"}]
[null,null,{"$error":"#REF!"}]
[null,null,{"$error":"#REF!"}]
[null,null,{"$error":"#REF!"}]
[null,null,{"$error":"#REF!"}]
[null,null,{"$error":"#REF!"}]
[null,null,{"$error":"#REF!"}]
[null,null,{"$error":"#REF!"}]
[null,null,{"$error":"#REF!"}]
[null,null,{"$error":"#REF!"}]
[null,null,{"$error":"#REF!"}]
[null,null,{"$error":"#REF!"}]
[null,null,{"$error":"#REF!"}]
[null,null,{"$error":"#REF!"}]
[null,null,{"$error":"#REF!"}]
[null,null,{"$error":"#REF!"}]
[null,null,{"$error":"#REF!"}]
[null,null,{"$error":"#REF!"}]
[null,null,{"$error":"#REF!"}]
[null,null,{"$error":"#REF!"}]
[null,null,{"$error":"#REF!"}]
[null,null,{"$error":"#REF!"}]
[null,null,{"$error":"#REF!"}]
[null,null,{"$error":"#REF!"}]
[null,null,{"$error":"#REF!"}]
[null,null,{"$error":"#REF!"}]
[null,null,{"$error":"#REF!"}]
[null,null,{"$error":"#REF!"}]
[null,null,{"$error":"#REF!"}]
[null,null,{"$error":"#REF!"}]
[null,null,{"$error":"#REF!"}]
[null,null,{"$error":"#REF!"}]
[null,null,{"$error":"#REF!"}]
[null,null,{"$error":"#REF!"}]
[null,null,{"$error":"#REF!"}]
[null,null,{"$error":"#REF!"}]
[null,null,{"$f":"VLOOKUP(IF(ISERROR(VALUE(A899)),A899,VALUE(A899)),PayItems,2,FALSE)","v":{"$error":"#REF!"}}]
[null,null,{"$error":"#REF!"}]
[null,null,{"$error":"#REF!"}]
[null,null,{"$error":"#REF!"}]
[null,null,{"$error":"#REF!"}]
[null,null,{"$error":"#REF!"}]
[null,null,{"$error":"#REF!"}]
[null,null,{"$error":"#REF!"}]
[null,null,{"$error":"#REF!"}]
[null,null,{"$error":"#REF!"}]
[null,null,{"$error":"#REF!"}]
[null,null,{"$error":"#REF!"}]
[null,null,{"$error":"#REF!"}]
[null,null,{"$error":"#REF!"}]
[null,null,{"$error":"#REF!"}]
[null,null,{"$error":"#REF!"}]
[null,null,{"$error":"#REF!"}]
[null,null,{"$error":"#REF!"}]
[null,null,{"$error":"#REF!"}]
[null,null,{"$error":"#REF!"}]
[null,null,{"$error":"#REF!"}]
[null,null,{"$error":"#REF!"}]
[null,null,{"$error":"#REF!"}]
[null,null,{"$error":"#REF!"}]
[null,null,{"$error":"#REF!"}]
[null,null,{"$error":"#REF!"}]
[null,null,{"$error":"#REF!"}]
[null,null,{"$error":"#REF!"}]
[null,null,{"$error":"#REF!"}]
[null,null,{"$error":"#REF!"}]
[null,null,{"$error":"#REF!"}]
[null,null,{"$error":"#REF!"}]
[null,null,{"$error":"#REF!"}]
[null,null,{"$error":"#REF!"}]
[null,null,{"$error":"#REF!"}]
[null,null,{"$error":"#REF!"}]
[null,null,{"$error":"#REF!"}]
[null,null,{"$error":"#REF!"}]
[null,null,{"$error":"#REF!"}]
[null,null,{"$error":"#REF!"}]
[null,null,{"$error":"#REF!"}]
[null,null,{"$error":"#REF!"}]
[null,null,{"$error":"#REF!"}]
[null,null,{"$error":"#REF!"}]
[null,null,{"$error":"#REF!"}]
[null,null,{"$error":"#REF!"}]
[null,null,{"$error":"#REF!"}]
[null,null,{"$error":"#REF!"}]
[null,null,{"$error":"#REF!"}]
[null,null,{"$error":"#REF!"}]
[null,null,{"$error":"#REF!"}]
[null,null,{"$error":"#REF!"}]
[null,null,{"$error":"#REF!"}]
[null,null,{"$error":"#REF!"}]
[null,null,{"$error":"#REF!"}]
[null,null,{"$error":"#REF!"}]
[null,null,{"$error":"#REF!"}]
[null,null,{"$error":"#REF!"}]
[null,null,{"$error":"#REF!"}]
[null,null,{"$error":"#REF!"}]
[null,null,{"$error":"#REF!"}]
[null,null,{"$error":"#REF!"}]
[null,null,{"$error":"#REF!"}]
[null,null,{"$error":"#REF!"}]
[null,null,{"$f":"VLOOKUP(IF(ISERROR(VALUE(A963)),A963,VALUE(A963)),PayItems,2,FALSE)","v":{"$error":"#REF!"}}]
[null,null,{"$error":"#REF!"}]
[null,null,{"$error":"#REF!"}]
[null,null,{"$error":"#REF!"}]
[null,null,{"$error":"#REF!"}]
[null,null,{"$error":"#REF!"}]
[null,null,{"$error":"#REF!"}]
[null,null,{"$error":"#REF!"}]
[null,null,{"$error":"#REF!"}]
[null,null,{"$error":"#REF!"}]
[null,null,{"$error":"#REF!"}]
[null,null,{"$error":"#REF!"}]
[null,null,{"$error":"#REF!"}]
[null,null,{"$error":"#REF!"}]
[null,null,{"$error":"#REF!"}]
[null,null,{"$error":"#REF!"}]
[null,null,{"$error":"#REF!"}]
[null,null,{"$error":"#REF!"}]
[null,null,{"$error":"#REF!"}]
[null,null,{"$error":"#REF!"}]
[null,null,{"$error":"#REF!"}]
[null,null,{"$error":"#REF!"}]
[null,null,{"$error":"#REF!"}]
[null,null,{"$error":"#REF!"}]
[null,null,{"$error":"#REF!"}]
[null,null,{"$error":"#REF!"}]
[null,null,{"$error":"#REF!"}]
[null,null,{"$error":"#REF!"}]
[null,null,{"$error":"#REF!"}]
[null,null,{"$error":"#REF!"}]
[null,null,{"$error":"#REF!"}]
[null,null,{"$error":"#REF!"}]
[null,null,{"$error":"#REF!"}]
[null,null,{"$error":"#REF!"}]
[null,null,{"$error":"#REF!"}]
[null,null,{"$error":"#REF!"}]
[null,null,{"$error":"#REF!"}]
[null,null,{"$error":"#REF!"}]
[null,null,{"$error":"#REF!"}]
[null,null,{"$error":"#REF!"}]
[null,null,{"$error":"#REF!"}]
[null,null,{"$error":"#REF!"}]
[null,null,{"$error":"#REF!"}]
[null,null,{"$error":"#REF!"}]
[null,null,{"$error":"#REF!"}]
[null,null,{"$error":"#REF!"}]
[null,null,{"$error":"#REF!"}]
[null,null,{"$error":"#REF!"}]
[null,null,{"$error":"#REF!"}]
[null,null,{"$error":"#REF!"}]
[null,null,{"$error":"#REF!"}]
[null,null,{"$error":"#REF!"}]
[null,null,{"$error":"#REF!"}]
[null,null,{"$error":"#REF!"}]
[null,null,{"$error":"#REF!"}]
[null,null,{"$error":"#REF!"}]
[null,null,{"$error":"#REF!"}]
[null,null,{"$error":"#REF!"}]
[null,null,{"$error":"#REF!"}]
[null,null,{"$error":"#REF!"}]
[null,null,{"$error":"#REF!"}]
[null,null,{"$error":"#REF!"}]
[null,null,{"$error":"#REF!"}]
[null,null,{"$error":"#REF!"}]
[null,null,{"$f":"VLOOKUP(IF(ISERROR(VALUE(A1027)),A1027,VALUE(A1027)),PayItems,2,FALSE)","v":{"$error":"#REF!"}}]
[null,null,{"$error":"#REF!"}]
[null,null,{"$error":"#REF!"}]
[null,null,{"$error":"#REF!"}]
[null,null,{"$error":"#REF!"}]
[null,null,{"$error":"#REF!"}]
[null,null,{"$error":"#REF!"}]
[null,null,{"$error":"#REF!"}]
[null,null,{"$error":"#REF!"}]
[null,null,{"$error":"#REF!"}]
[null,null,{"$error":"#REF!"}]
[null,null,{"$error":"#REF!"}]
[null,null,{"$error":"#REF!"}]
[null,null,{"$error":"#REF!"}]
[null,null,{"$error":"#REF!"}]
[null,null,{"$error":"#REF!"}]
[null,null,{"$error":"#REF!"}]
[null,null,{"$error":"#REF!"}]
[null,null,{"$error":"#REF!"}]
[null,null,{"$error":"#REF!"}]
[null,null,{"$error":"#REF!"}]
[null,null,{"$error":"#REF!"}]
[null,null,{"$error":"#REF!"}]
[null,null,{"$error":"#REF!"}]
[null,null,{"$error":"#REF!"}]
[null,null,{"$error":"#REF!"}]
[null,null,{"$error":"#REF!"}]
[null,null,{"$error":"#REF!"}]

{"sheet":"IL","index":1,"n_rows":7,"n_cols":10,"rows_kept":7,"cut":false,"hidden":false,"merged":[]}
[null,"Training / Continuing Education - Renewal Summary - Illinois",null,null,"Renewal Start Date:","2018-12-01"]
[null,null,null,null,"Renewal End Date:","2020-02-01"]
[]
[]
[null,"Sum of PDH/CEU",null,null,null,null,null,null,"Expires:","2019-11-30"]
[null,"Date Passed","Course ID","Course Title","Sponsor","Total"]
[null,"Grand Total"]

{"sheet":"MN","index":2,"n_rows":8,"n_cols":10,"rows_kept":8,"cut":false,"hidden":false,"merged":[]}
[null,"Training / Continuing Education - Renewal Summary - Minnesota",null,null,"Renewal Start Date:","2017-08-01"]
[null,null,null,null,"Renewal End Date:","2020-12-31"]
[]
[]
[null,"Sum of PDH/CEU",null,null,null,null,null,null,"Expires:","2020-07-31"]
[null,"Date Passed","Course ID","Course Title","Sponsor","Total"]
[null,"2020-03-01","A100","Course 1","WisDOT",4]
[null,"Grand Total",null,null,null,4]

{"sheet":"WISCONSIN","index":3,"n_rows":69,"n_cols":13,"rows_kept":69,"cut":false,"hidden":false,"merged":[[8,0,8,9],[0,0,0,8],[1,0,1,8],[2,0,2,8],[4,5,4,8],[5,5,5,8],[36,0,38,2],[9,0,10,0],[9,3,10,3],[9,5,9,8],[31,0,31,4],[32,0,33,2],[32,3,32,4],[33,3,33,4],[33,5,33,8],[34,0,35,2],[34,3,34,4],[34,5,34,8],[35,3,35,4],[35,5,35,8]]}
["WISCONSIN DEPARTMENT OF SAFETY AND PROFESSIONAL SERVICES",null,null,null,null,null,null,null,null,null,null,"Renewal Start Date:","2017-04-01"]
["CONTINUING EDUCATION ATTENDANCE TABLE",null,null,null,null,null,null,null,null,null,null,"Renewal End Date:","2022-03-30"]
["ENGINEER 2018-2020 BIENNIUM CONTINUING EDUCATION RECORD"]
[]
["Name: ",null,null,null,"License Number: "]
["Email Address: ",null,null,null,"Phone Number: "]
[]
["Continuing Education Requirements for the 2018-2020 biennium:",null,null,{"$f":"TEXT(M1,\"mm/dd/yyyy\")&\" to \"&TEXT(M2,\"mm/dd/yyyy\")","v":"04/01/2017 to 03/30/2022"}]
["Pursuant to § A-E 13.03(1)(a), a total of 30 PDHs are required each biennium.  Licensees shall have a minimum of 2 PDHs in the area of professional conduct and ethics (13.03 (1)(a)), a minimum of 13 PDHs must be obtained via courses where the registrant interacts in real time in a traditional classroom setting, computer conferencing, or interactive video conference where participants are present in the same room or logged in at the same time and can communicate directly with each other and ask questions of the instructor (A-E 13.03(1)(b)), and a maximum of 4 PDHs from actively participating in professional and technical societies (A-E 13.03(2)(f))."]
["Date",null,null,"Course Title",null,"PDHs Earned"]
[null,"Sponsoring Organization","Activity Location\n(city, state)",null,"Instructor's Name","a.\nA-E 13.03(1)(b)\n2 PDHs minimum ","b.\nA-E 13.03(1)(c)\n13 PDHs minimum","c.\nA-E 13.03(2)(f)\n4 PDHs maximum","d.\nOther","Notes"]
["Date Passed","Sponsor","Location","Course Title","Instructor","WISCONSIN 13.03(1)(b)","WISCONSIN 13.03(1)(c)","WISCONSIN 13.03(2)(f)","WISCONSIN OTHER","Notes"]
["2020-03-01","WisDOT","Madison","Course 1","Jones",4,6,8.5,2.5,"Testing Notes"]
["2021-02-01","GB Public Works","Green Bay","Course 3","Kane",2,2,2,2,"CHECK NOTES"]
["2021-03-21","WisDOT","Madison","Course 2","Smith",2,2,2,2,"(blank)"]
[]
[]
[]
[]
[]
[]
[]
[]
[]
[]
[]
[]
[]
[]
[]
[]
[null,null,null,null,null,"Total               A-E 13.03(1)(b)","Total\nA-E 13.03(1)(c)","Total\nA-E 13.03(2)(f)\n","Total       Other","Grand Totals"]
["Print this document and attach a certificate of attendance or completion for each program listed in the above record.                                                 Each certificate should include the course provider name, course title, date of completion, the number of PDHs and the licensee's name.                                                                                              ",null,null,"e. Total PDHs earned since last biennium\n  ",null,{"$f":"SUM(F13:F31)","v":8},{"$f":"SUM(G13:G31)","v":10},12.5,6.5,{"$f":"SUM(F33:I33)","v":37}]
[null,null,null,"f. PDHs carried forward from prior biennium\n    15 PDHs maximum\n   ",null,null,null,null,null,10,"<<== ENTER FROM LAST PERIOD"]
["You are not required to submit this table or copies of your completion certificates at renewal, only if you are requested to do so by the Department or the Engineering Section.",null,null,"g. Total PDHs available this biennium (Total e + Total f)\n     Must have 30 PDHs minimum",null,null,null,null,null,{"$f":"J33+J34","v":47}]
[null,null,null,"h. Total to be carried forward to next biennium\n     (Total g minus 30 but not to exceed 15 PDHs)",null,null,null,null,null,{"$f":"J35-30","v":17}]
["A registrant shall maintain records of their continuing education units and PDHs earned for a minimum of the 3 most recent biennia (A-E 13.07(1))"]
[]
[]
[]
["A−E 13.03 Continuing education requirements."]
["(1) (a) Beginning in the biennial registration period commencing August 1, 2012 and ending July 31, 2014, unless granted a waiver"]
["under s. A−E 13.08, every registrant shall complete at least 30 hours of approved PDHs or equivalent continuing education"]
["units, pertinent to the practice of professional engineering, except that between initial registration and the first renewal period, a new"]
["registrant shall not be required to comply with the continuing education requirements for the first renewal of registration."]
["(b) During each biennial registration period, the registrant shall complete a minimum of 2 PDHs in the area of professional conduct and ethics."]
["(c) During each biennial registration period, credit for a minimum of 13 PDHs shall be obtained via courses where the registrant"]
["interacts in real time in a traditional classroom setting, computer conferencing, or interactive video conference where"]
["conferencing, or interactive video conference where participants are present in the same room or logged in at the same"]
["time and can communicate directly with each other and ask questions of the instructor."]
["(d) If a registrant obtains more than 30 PDHs in a biennium, maximum of 15 of the excess PDHs may be used toward the continuing"]
["education requirement in the next biennium. Excess credits cannot be used to satisfy the requirements of par. (b) or (c)."]
[]
["(2) Continuing education may be obtained through any of the following means:"]
["(a) Completing courses taken at a school or college of engineering accredited by the EAC/ABET."]
["(b) Completing short courses or tutorials and distance education courses offered through correspondence, DVDs, or the internet."]
["(c) Presenting or attending qualifying seminars, in−house courses, workshops, or professional or technical presentations"]
["made at meetings, conventions, or conferences."]
["(d) Teaching or instructing in pars. (a) to (c). PDHs may only be counted for the initial offering or presentation of a course or"]
["program. Full−time faculty may not claim PDHs for teaching done as part of their regular duties. For teaching in pars. (a) to (d),"]
["multiply the PDHs earned by a factor of 2."]
["(e) Authoring published papers, articles, or books in the registrant’s area of professional practice that has been published in"]
["book form or in circulated journals or trade magazines. Five PDHs will be granted in the biennium in which each publication"]
["occurred. For peer reviewed papers, articles, or books in the registrant’s area of professional practice, 10 PDHs will be granted in"]
["the biennium in which each publication occurred."]
["(f) Actively participating in professional and technical societies. A maximum of 2 PDHs will be awarded for active participation"]
["as an officer or committee member in any one society in any one year. A maximum of 4 PDHs may be obtained under this paragraph"]
["in any biennium. PDHs are not earned until the end of each year of service is completed."]
["(g) Attainment of a patent relevant to the registrant’s area of professional practice. Ten PDHs will be awarded for each patent."]

{"sheet":"STATE3","index":4,"n_rows":7,"n_cols":10,"rows_kept":7,"cut":false,"hidden":false,"merged":[]}
[null,"Training / Continuing Education - Renewal Summary - STATE3",null,null,"Renewal Start Date:","2017-01-01"]
[null,null,null,null,"Renewal End Date:","2019-12-31"]
[]
[]
[null,"Sum of PDH/CEU",null,null,null,null,null,null,"Expires:","2019-12-01"]
[null,"Date Passed","Course ID","Course Title","Sponsor","STATE3","Total"]
[null,"Grand Total"]

{"sheet":"STATE4","index":5,"n_rows":7,"n_cols":7,"rows_kept":7,"cut":false,"hidden":false,"merged":[]}
[null,"Training / Continuing Education - Renewal Summary - STATE4",null,null,"Renewal Start Date:","2017-01-01"]
[null,null,null,null,"Renewal End Date:","2018-12-01"]
[]
[]
[null,"Sum of PDH/CEU"]
[null,"Date Passed","Course ID","Course Title","Sponsor","STATE4","Total"]
[null,"Grand Total"]

{"sheet":"STATE5","index":6,"n_rows":7,"n_cols":7,"rows_kept":7,"cut":false,"hidden":false,"merged":[]}
[null,"Training / Continuing Education - Renewal Summary - STATE5",null,null,"Renewal Start Date:","2017-01-01"]
[null,null,null,null,"Renewal End Date:","2019-07-01"]
[]
[]
[null,"Sum of PDH/CEU"]
[null,"Date Passed","Course ID","Course Title","Sponsor","STATE5","Total"]
[null,"Grand Total"]

{"sheet":"STATE6","index":7,"n_rows":7,"n_cols":7,"rows_kept":7,"cut":false,"hidden":false,"merged":[]}
[null,"Training / Continuing Education - Renewal Summary - STATE6",null,null,"Renewal Start Date:","2017-01-01"]
[null,null,null,null,"Renewal End Date:","2018-10-01"]
[]
[]
[null,"Sum of PDH/CEU"]
[null,"Date Passed","Course ID","Course Title","Sponsor","STATE6","Total"]
[null,"Grand Total"]

{"sheet":"STATE7","index":8,"n_rows":7,"n_cols":7,"rows_kept":7,"cut":false,"hidden":false,"merged":[]}
[null,"Training / Continuing Education - Renewal Summary - STATE7",null,null,"Renewal Start Date:","2017-01-01"]
[null,null,null,null,"Renewal End Date:","2018-11-01"]
[]
[]
[null,"Sum of PDH/CEU"]
[null,"Date Passed","Course ID","Course Title","Sponsor","STATE7","Total"]
[null,"Grand Total"]

{"sheet":"STATE8","index":9,"n_rows":8,"n_cols":7,"rows_kept":8,"cut":false,"hidden":false,"merged":[]}
[null,"Training / Continuing Education - Renewal Summary - State 8",null,null,"Renewal Start Date:","2017-01-01"]
[null,null,null,null,"Renewal End Date:","2020-06-15"]
[]
[]
[null,"Sum of PDH/CEU"]
[null,"Date Passed","Course ID","Course Title","Sponsor","STATE8","Total"]
[null,"2020-03-01","A100","Course 1","WisDOT","Y",4]
[null,"Grand Total",null,null,null,null,4]